Cogmind - Beta 9.3 @@@ ROGUE MODE // 2020.01.02 @ 09:57:59 Player: Cipherpunk Result: Destroyed by Y-45 Defender with Beam Rifle Performance ------------- Evolutions (1) 500 Regions Visited (3) 600 Robots Destroyed (14) 70 Value Destroyed (202) 202 Prototype IDs (0) 0 Alien Tech Used (0) 0 Bonus (35) 35 TOTAL SCORE: 1407 Bonus ------- Follower Combat Kills 35 Cogmind --------- Core Integrity 0/400 Matter 300/300 Energy 100/100 System Corruption 0% Temperature Cool (9) Movement Core (800) Ox15 Location -9/Materials Parts ------- > --- POWER (1) -------- (None) > --- PROPULSION (3) --- (None) > --- UTILITY (3) ------ Large Storage Unit Large Storage Unit Large Storage Unit > --- WEAPON (2) ------- (None) > --- INVENTORY (22) --- Ion Engine Deuterium Engine Deuterium Engine Improved Hover Unit Airjet Airjet Airjet Airjet Medium Storage Unit Terrain Scanner Terrain Scan Processor Beam Rifle Mining Laser Maul Peak State ------------ > --- POWER ------------ Light Nuclear Core > --- PROPULSION ------- Improved Hover Unit Improved Hover Unit > --- UTILITY ---------- Medium Storage Unit Sensor Array > --- WEAPON ----------- Beamcaster Light Assault Rifle > --- INVENTORY -------- Ion Engine Wheel Compact Wheel Large Storage Unit Assault Rifle Light Assault Rifle Mining Laser [Rating: 15] Favorites ----------- Power Light Ion Engine Engine Light Ion Engine Power Core Light Nuclear Core Propulsion Improved Hover Unit Leg Aluminum Leg Wheel Wheel Hover Unit Improved Hover Unit Utility Medium Storage Unit Device Sensor Array Storage Medium Storage Unit Protection Power Shielding Weapon Assault Rifle Energy Gun EM Pulse Gun Ballistic Gun Assault Rifle Build | -11 -10 -10 -9 ------- Run | Scr Mat Min Mat Slots Evolved 2 | . . . 2 Power . | . . . . Propulsion 1 | . . . 1 Utility 1 | . . . 1 Weapon . | . . . . Parts Attached 28 | . 8 8 12 Power 5 | . 1 2 2 Engine 4 | . 1 1 2 Core 1 | . . 1 . Reactor . | . . . . Propulsion 9 | . 4 2 3 Treads . | . . . . Leg . | . . . . Wheel 5 | . 2 . 3 Hover 4 | . 2 2 . Flight . | . . . . Utility 7 | . 2 1 4 Device 1 | . 1 . . Storage 5 | . 1 . 4 Processor . | . . . . Hackware . | . . . . Protection 1 | . . 1 . Artifact . | . . . . Weapon 7 | . 1 3 3 Energy Gun 3 | . 1 1 1 Energy Cannon . | . . . . Ballistic Gun 4 | . . 2 2 Ballistic Cannon . | . . . . Launcher . | . . . . Special Weapon . | . . . . Impact Weapon . | . . . . Slashing Weapon . | . . . . Piercing Weapon . | . . . . Special Melee Weapon . | . . . . Unidentified Prototypes . | . . . . Parts Lost 13 | . . 6 7 Power 2 | . . 1 1 Propulsion 6 | . . 3 3 Utility 1 | . . 1 . Weapon 4 | . . 1 3 Highest Loss Streak 5 | . . 3 5 Average Slot Usage (%) 89 | . 93 89 81 Engine 10 | . 14 7 9 Core 2 | . . 5 . Wheel 6 | . 2 . 22 Hover 20 | . 24 27 5 Device 7 | . 7 13 . Storage 18 | . 14 14 30 Energy Gun 9 | . 14 8 4 Ballistic Gun 11 | . 14 12 7 Naked Turns . | . . . . Heaviest Build 61 | 10 16 21 61 Greatest Support 36 | 20 26 16 36 Greatest Overweight (x) 18 | . 1 1 18 Average Overweight (x) . | . . . 1 Largest Inventory Capacity 22 | . 10 8 22 Average Capacity 10 | . 7 8 20 Most Carried 14 | . 8 8 14 Average Carried 7 | . 7 7 8 Final Capacity 22 | 6 8 8 22 Final Carried 14 | 6 8 8 14 Class Distribution -------------------- 80% | Mutant 19% | Hauler-Mutant Dominant Class ---------------- Mutant | -10/Materials Mutant | -10/Mines Hauler-Mutant | -9/Materials Resources | -11 -10 -10 -9 ----------- Run | Scr Mat Min Mat Matter Collected 483 | 200 80 111 92 Remotely . | . . . . Salvage Created 420 | . 46 294 80 Parts 33 | . 7 19 7 Haulers Intercepted . | . . . . Recyclers Shooed . | . . . . Parts Field Recycled . | . . . . Retrieved Matter . | . . . . Parts Self-Destructed . | . . . . Prevented . | . . . . Kills | -11 -10 -10 -9 ------- Run | Scr Mat Min Mat Combat Hostiles Destroyed 6 | . . 5 1 Guns 3 | . . 2 1 AOE 3 | . . 3 . Classes Destroyed 8 | . 2 5 1 Worker 2 | . . 2 . Builder 3 | . . 2 1 Tunneler 1 | . 1 . . Recycler 1 | . . 1 . Watcher 1 | . 1 . . Swarmer 3 | . . 3 . Grunt 2 | . . 2 . Sentry 1 | . . . 1 Best Kill Streak 4 | . 1 4 1 Combat Bots Only 3 | . . 3 1 Max Kills in Single Turn 2 | . 1 2 1 Gunslinging . | . . . . Exploded 2 | . . 2 . Melee . | . . . . Uniques/NPCs Destroyed . | . . . . Combat | -11 -10 -10 -9 -------- Run | Scr Mat Min Mat Damage Taken 1839 | . 138 607 1094 Core 632 | . . 222 410 Absorbed by Shields . | . . . . Core Remaining (%) 55 | 100 . 11 . Volleys Fired 38 | . 6 25 7 Largest 2 | . 1 2 2 Hottest 95 | . 40 95 95 Shots Fired 58 | . 6 40 12 Gun 58 | . 6 40 12 Cannon . | . . . . Launcher . | . . . . Special . | . . . . Kinetic 22 | . . 17 5 Thermal 14 | . . 7 7 Explosive . | . . . . Electromagnetic 22 | . 6 16 . Robot Hit Streak 5 | . 1 4 5 Robot Miss Streak 8 | . 2 8 1 Penetration Max . | . . . . Secondary Targets 1 | . . 1 . Max Gunslinging Chain 1 | . . 1 . Shots Hit Robots 28 | . 2 19 7 Core Hits 17 | . 2 12 3 Critical Hits . | . . . . Critical Kills . | . . . . Critical Parts Destroyed . | . . . . Melee Attacks . | . . . . Impact . | . . . . Slashing . | . . . . Piercing . | . . . . Sneak Attacks . | . . . . Combat Hostiles . | . . . . Follow-up Attacks . | . . . . Damage Inflicted 578 | . 50 445 83 Guns 388 | . 50 255 83 Cannons . | . . . . Explosions 179 | . . 179 . Melee . | . . . . Ramming 11 | . . 11 . Kinetic 111 | . . 94 17 Thermal 308 | . . 242 66 Explosive . | . . . . Electromagnetic 148 | . 50 98 . Impact . | . . . . Slashing . | . . . . Piercing . | . . . . Highest Corruption 1 | . 1 1 . Average Corruption 1 | . 1 1 . Corruption Purged . | . . . . Effects 2 | . 1 1 . Message Errors 1 | . 1 . . Targeting Errors 1 | . . 1 . Overload Shots . | . . . . Overflow Damage . | . . . . Projectiles . | . . . . Explosions . | . . . . Melee . | . . . . Knockbacks . | . . . . Impact . | . . . . Kinetic . | . . . . Secondary . | . . . . Self-Inflicted Damage 67 | . . 67 . Shots 2 | . . 2 . Rammed 4 | . 1 3 . Targets Rammed 4 | . 1 3 . Kicked . | . . . . Crushed . | . . . . Highest Temperature 387 | . 6 387 134 Average Temperature 86 | . 3 106 52 Received Heat Transfer 729 | . 75 240 414 Effects 2 | . . 2 . Interference 2 | . . 2 . Siege Activations . | . . . . Robots Corrupted . | . . . . Combat Hostiles . | . . . . Parts Fried . | . . . . Impact Corruptions . | . . . . Robots Melted . | . . . . Combat Hostiles . | . . . . Parts Melted . | . . . . Heat Transferred 372 | . . 261 111 Parts Sabotaged . | . . . . Parts Stolen . | . . . . Parts Stripped . | . . . . Power Chain Reactions 2 | . . 2 . Missiles Intercepted . | . . . . Alert | -11 -10 -10 -9 ------- Run | Scr Mat Min Mat Peak Influence 119 | . 40 119 67 Average Influence 31 | . 12 49 34 Maximum Alert Level . | . . . . Low Security (%) 100 | . 100 100 100 Level 1 . | . . . . Level 2 . | . . . . Level 3 . | . . . . Level 4 . | . . . . Level 5 . | . . . . High Security . | . . . . Max Security . | . . . . Squads Dispatched 1 | . 1 . . Investigation 1 | . 1 . . Extermination . | . . . . Reinforcement . | . . . . Assault . | . . . . Garrison . | . . . . Intercept . | . . . . Construction Impeded . | . . . . Haulers Reinforced . | . . . . Stealth | -11 -10 -10 -9 --------- Run | Scr Mat Min Mat Distress Signals 2 | . . 1 1 Communications Jammed . | . . . . Distress Signals . | . . . . Times Spotted 49 | . 17 22 10 Peak Tracking Total 7 | . 6 7 7 Tactical Retreats 11 | . 3 6 2 Traps | -11 -10 -10 -9 ------- Run | Scr Mat Min Mat Traps Triggered 2 | . 2 . . Indirectly . | . . . . Trap Hack Attempts . | . . . . Triggered . | . . . . Disarmed . | . . . . Reprogrammed . | . . . . Reused . | . . . . Traps Extracted . | . . . . Installed . | . . . . Triggered . | . . . . Machines | -11 -10 -10 -9 ---------- Run | Scr Mat Min Mat Machines Disabled . | . . . . Max in Single Turn . | . . . . Machines Sabotaged . | . . . . Garrisons Compromised . | . . . . Overloaded Fab Kills . | . . . . Fab Network Shutdowns . | . . . . Hacking | -11 -10 -10 -9 --------- Run | Scr Mat Min Mat Machines Accessed 5 | . 4 . 1 Terminals 4 | . 3 . 1 Fabricators . | . . . . Repair Stations . | . . . . Recycling Units 1 | . 1 . . Scanalyzers . | . . . . Garrison Access . | . . . . Total Hacks 17 | . 11 . 6 Successful 11 | . 7 . 4 Failed 6 | . 4 . 2 Catastrophic . | . . . . Database Lockouts . | . . . . Manual 12 | . 6 . 6 Terminals 15 | . 9 . 6 Fabricators . | . . . . Repair Stations . | . . . . Recycling Units 2 | . 2 . . Scanalyzers . | . . . . Garrison Access . | . . . . Terminal Hacks 4 | . 2 . 2 Level Access Points 1 | . 1 . . Branch Access Points 1 | . . . 1 Terminal Index 1 | . . . 1 Registered Components 1 | . 1 . . Fabricator Hacks . | . . . . Repair Station Hacks . | . . . . Recycling Unit Hacks 1 | . 1 . . Retrieve Components 1 | . 1 . . Scanalyzer . | . . . . Garrison Access Hacks . | . . . . Unauthorized Hacks 16 | . 10 . 6 Terminals 6 | . 4 . 2 Track 2 | . 1 . 1 Botnet 3 | . 2 . 1 Operators 1 | . 1 . . Fabricators . | . . . . Repair Stations . | . . . . Recycling Units . | . . . . Scanalyzers . | . . . . Garrison Access . | . . . . Data Cores Recovered . | . . . . Used . | . . . . Hacking Detections 2 | . 1 . 1 Full Trace Events 1 | . . . 1 Feedback Events . | . . . . Feedback Blocked . | . . . . Robot Schematics Acquired . | . . . . Robots Built . | . . . . Matter . | . . . . Time . | . . . . Total Robot Build Rating . | . . . . Part Schematics Acquired . | . . . . Parts Built . | . . . . Matter . | . . . . Time . | . . . . Total Part Build Rating . | . . . . Parts Repaired . | . . . . Time . | . . . . Parts Recycled . | . . . . Recycled Matter . | . . . . Retrieved Matter . | . . . . Retrieved Components 2 | . 2 . . Parts Scanalyzed . | . . . . Part Schematics Acquired . | . . . . Parts Damaged . | . . . . Bothacking | -11 -10 -10 -9 ------------ Run | Scr Mat Min Mat Used RIF Installer . | . . . . Robots Hacked . | . . . . Non-combat . | . . . . Combat . | . . . . Robot Hacks Applied . | . . . . Relay Couplers Released . | . . . . Robots Rewired . | . . . . Allies Hacked . | . . . . Hacks Repelled . | . . . . Allies | -11 -10 -10 -9 -------- Run | Scr Mat Min Mat Total Allies 2 | . . 2 . Largest Group 2 | . . 2 . Highest-Rated Group 43 | . . 43 . Highest-Rated Ally 31 | . . 31 . Total Orders . | . . . . Ally Attacks 4 | . . 4 . Total Damage 84 | . . 84 . Kills 1 | . . 1 . Allies Corrupted . | . . . . Allies Melted . | . . . . Intel | -11 -10 -10 -9 ------- Run | Scr Mat Min Mat Robot Analysis Total . | . . . . Derelict Logs Recovered 2 | . . 2 . Drone Launches . | . . . . Drone Recoveries . | . . . . Exploration | -11 -10 -10 -9 ------------- Run | Scr Mat Min Mat Turns Passed 1229 | . 490 444 295 Spaces Moved 1550 | 1 731 610 208 Core 5 | . . . 5 Treads . | . . . . Legs 22 | 1 21 . . Wheels 242 | . 39 . 203 Hover 1281 | . 671 610 . Flight . | . . . . Fastest Speed 56 | 120 56 56 90 Average Speed 66 | 120 59 58 118 Slowest Speed 950 | 120 125 120 950 Overloaded Moves . | . . . . Propulsion Burnouts . | . . . . Robots Hopped . | . . . . Cave-ins Triggered . | . . . . Exploration Rate (%) 46 | 2 63 99 22 Regions Visited 3 Branch Regions 1 Pre-discovered Areas 2 | . . 2 . Known Exits Taken 1 | . . 1 . Unknown Exits Taken 2 | 1 1 . . Scrap Searched 1 | . . 1 . Spaces Dug . | . . . . Terrain Destroyed 12 | . . 12 . Melee . | . . . . Projectile . | . . . . AOE 12 | . . 12 . Actions | -11 -10 -10 -9 --------- Run | Scr Mat Min Mat Total 1689 | . 779 660 250 Wait 37 | . 19 7 11 Move 1547 | . 730 609 208 Hop . | . . . . Pick Up 17 | . 4 2 11 Fast Attach 11 | . 6 3 2 Attach 10 | . . 3 7 Detach 6 | . 4 1 1 Swap 7 | . 2 2 3 Drop 12 | . 7 5 . Fire 38 | . 6 25 7 Melee . | . . . . Ram 4 | . 1 3 . Kick . | . . . . Crush . | . . . . Escape Stasis . | . . . . Rewire . | . . . . Trap . | . . . . Miscellaneous . | . . . . Route ------- -11/Scrapyard -10/Materials (discovered 4 exits: *Mat x3 / [*Min]) -10/Mines (discovered 2 exits: *Mat x2) -9/Materials (discovered 1 exit: Min) History --------- Turn | Location | Event 1 | -11/Scrapyard | Discovered new exit (range 0) 1 | -11/Scrapyard | Entered Materials 88 | -10/Materials | Discovered new exit (range 15) 165 | -10/Materials | Discovered new exit (range 10) 239 | -10/Materials | Identified exit to Materials 301 | -10/Materials | Build established: Mutant 491 | -10/Materials | Entered Mines 522 | -10/Mines | Met a Derelict bent on vengeance 529 | -10/Mines | Learned location of Mines (-8) 654 | -10/Mines | Discovered exit to Materials (range 11) 743 | -10/Mines | Learned location of Storage (-8) 859 | -10/Mines | Discovered exit to Materials (range 8) 861 | -10/Mines | Core integrity fell below 50% 884 | -10/Mines | Learned Materials emergency access door positions 910 | -10/Mines | Core integrity fell below 20% 935 | -10/Mines | Entered Materials 935 | -9/Materials | Evolved 2 slots: Propulsion x1, Utility x1 943 | -9/Materials | Lost 3 parts (1p1n1u) 1181 | -9/Materials | Identified exit to Mines 1208 | -9/Materials | Core integrity fell below 50% 1219 | -9/Materials | Core integrity fell below 20% 1230 | -9/Materials | Destroyed by Y-45 Defender with Beam Rifle Last Messages --------------- Map updated. >>Trojan(Botnet) Trojan loaded successfully. Testing... Terminal linked with 0 systems. Awaiting botnet instructions. >>Index(Terminals) Found 12 terminals. Downloaded coordinate data. >>Trojan(Track) Trojan loaded successfully. Testing... Tracking enabled and active. 01181_ Connecting with Terminal... 01185_ Lgt. Assault Rifle destroyed. 01185_ Com. Wheel destroyed. 01192_ Wheel destroyed. 01203_ Imp. Ion Engine destroyed. 01217_ G-34 Mercenary destroyed. 01217_ K-01 Serf collects debris. Map ----- +----------------------------------------------------+ | ???????????????????# ???????????????????????? | | ???????????????????# ???????????????????????? | | ???????????????????# ???????????????????????? | | ???????????????????# #??????????????????????? | | ???????????????????# #??????????????????????? | | ???????????????????# #??????????????????????? | | ???????????????????# #??????????????????????? | | ???????????????????# #??????????????????????? | | ??????#????????????# ###########????????????? | | ????? #????????????# ## #????????????? | | ???? #???????????## ## "T" #????????????? | | ### +???????????# # #????????????? | | #???????????# b # [#????????????? | | #???????????# + """ #????????????? | | ?????????????# # """"" #????????????? | | ???#############??##Y ## """"" #????????????? | | ???# #???#u ## """"" #????????????? | | ???# #???# ## """ ??????????????? | | ???? #???# ########???????????????? | | ?????? #???# #??????????????????????? | | ???????? #???# #??????????????????????? | | ?????????? #???# m#??????????????????????? | | ???????????? #???# #??????????????????????? | | ???????##+####+##### #??????????????????????? | | ######## # ## #####??????????????????? | | # """ ## =g =@#??????????????????? | | # """ ##Y%g ==#??????????????????? | | + """ ## *g !!#??????????????????? | | ######## # ## !!#??????????????????? | | ???????# # ## !!#??????????????????? | | ???????# #####+### !!#??????????????????? | | ???????# ## #####??????????????????? | | ???????+ #??????????????????????? | | ???????# #??????????????????????? | | ???????# "" #??????????????????????? | | ???????# Y" #??????????????????????? | | ???????# "" #??????????????????????? | | ???????# #??????????????????????? | | ##????# !! #??????????????????????? | | ?????# !! #??????????????????????? | | ?????# #??????????????????????? | | #????# #??????????????????????? | | #????# ###+### #??????????????????????? | | #????# ####??????# #??????????????????????? | | #????#???????????# #??????????????????????? | | ##????????????????# #??????????????????????? | | ??????????????????? ??????????????????????? | | ??????????????????? ??????????????????????? | | ???????????????????? ?????????????????????? | | ????????????????????##???????????????????????? | +----------------------------------------------------+ Best States ------------- Heat Dissipation 28 Energy Generation 14 Energy Capacity 265 Matter Stores 300 Matter Capacity 300 Sight Range 16 Robot Scan Range 10 Terrain Scan Density 10 Power Shielding 33 Evasion (%) 53 Item Schematics ----------------- None Robot Schematics ------------------ None Fabricated ------------ Nothing Alien Tech Used ----------------- None Achievements -------------- None Challenges ------------ None Game ------ Seed UltimateRagnarokShockpuncher Manual? 0 Play Time 00:21:45 Cumulative 87.6 hours Start 2020.01.02 @ 09:40:26 End 2020.01.02 @ 09:57:59 Sessions 1 Manual Loads 0 Difficulty Rogue Special Mode None Game No. 82 Rogue 82 Adventurer 0 Explorer 0 Win Type - Total 0 Types 0/0/0/0/0/0/0 Lore% 47 Gallery% 53 Achievement% 39 Wizard Run 0 Options --------- ASCII 0 Keyboard 1 Movement Numpad Keybinds 0 Fullscreen 2 Font 18/Terminus Map View 76x50 Tactical HUD 1 Map Filters NONE Filters NONE Steam 1 RUN: 888bcf12-e1a6-4bc8-8968-f8cdd3ce04f2